bitfinex/quotes_ETHUSD_20240811
["timestamp","ask_amount","ask_price","bid_price","bid_amount"]
[1723390602285,2.66793,2623.8,2623.4,2.4824]
[1723390602639,2.66793,2623.8,2623.5,0.05727886]
[1723390603150,2.66779,2623.9,2623.5,0.05727886]
[1723390603345,2.66779,2623.9,2623.5,0.90666155]
[1723390605064,2.66764,2624.1,2623.5,3.57484155]
[1723390605244,5.66752,2624.2,2623.7,2.66793]
[1723390605441,2.66743,2624.3,2623.8,0.32360188]
[1723390605668,2.66743,2624.3,2623.8,2.72468888]
[1723390605871,2.66733,2624.4,2623.8,0.05680888]
[1723390606184,2.66743,2624.3,2623.8,0.05680888]
[1723390606351,2.66753,2624.2,2623.8,0.05680888]
[1723390606546,2.66753,2624.2,2623.8,0.27247189]
[1723390606761,2.66753,2624.2,2623.9,0.0560756]
[1723390607084,2.66753,2624.2,2623.8,0.27247189]
[1723390607246,2.61743,2624.3,2623.9,0.0560756]
[1723390607662,2.66728,2624.4,2623.9,0.0560756]
[1723390607946,2.66748,2624.2,2623.9,0.0560756]
[1723390608146,2.66741,2624.3,2623.9,0.0560756]
[1723390608388,2.66728,2624.4,2624.0,2.4814]
[1723390608788,2.66728,2624.4,2624.1,0.06277376]
[1723390610951,5.66712,2624.6,2624.1,0.58396114]
[1723390610952,2.66718,2624.5,2624.1,0.58396114]
[1723390611707,2.66677,2624.9,2624.4,2.66719]
[1723390611995,2.66677,2624.9,2624.5,0.505269]
[1723390612359,2.66677,2624.9,2624.4,2.66719]
[1723390612756,2.66677,2624.9,2624.4,2.74338802]
[1723390613111,2.66609,2625.6,2624.6,2.3855]
[1723390613296,2.66704,2624.7,2624.2,2.3855]
[1723390613454,2.3255,2625.3,2624.2,2.3855]
[1723390613653,2.66737,2624.3,2623.8,2.3855]
[1723390613980,2.66748,2624.2,2623.9,0.0627036]
[1723390614498,2.3255,2624.8,2623.9,0.0627036]
[1723390614499,2.6676,2624.1,2623.9,0.0627036]
[1723390614863,2.66768,2624.0,2623.9,0.0627036]
[1723390615364,2.6676,2624.1,2623.9,0.0627036]
[1723390615799,2.66768,2624.0,2623.9,0.0627036]
[1723390615982,2.6676,2624.1,2623.9,0.0627036]
[1723390617481,2.66723,2624.5,2624.0,2.66768]
[1723390617686,2.66723,2624.5,2624.1,2.72302983]
[1723390618109,2.66704,2624.7,2624.2,2.66747]
[1723390618291,2.66673,2625.0,2624.3,2.66732]
[1723390618598,2.66643,2625.3,2624.6,2.3855]
[1723390618900,2.66665,2625.1,2624.7,0.505266]
[1723390619071,2.66666,2625.0,2624.6,2.4616934]
[1723390619463,2.744,2625.7,2624.6,5.0525]
[1723390619464,2.66643,2625.3,2624.6,5.0525]
[1723390619765,2.66643,2625.3,2624.7,2.66696]
[1723390620186,4.99128,2625.9,2624.8,2.66678]
[1723390620378,2.66646,2625.2,2624.8,2.66678]
[1723390620686,3.17283,2625.8,2624.6,5.0525]
[1723390620687,2.66615,2625.5,2625.0,2.3855]
[1723390620888,2.66636,2625.3,2625.0,2.3855]
[1723390621100,2.66636,2625.3,2624.4,2.6672]
[1723390621101,2.66708,2624.6,2624.3,2.3855]
[1723390621300,2.3255,2625.3,2624.3,2.3855]
[1723390621301,2.66703,2624.7,2624.3,2.3855]
[1723390621813,2.66692,2624.8,2624.3,5.05287]
[1723390622248,2.66692,2624.8,2624.3,2.3855]
[1723390622398,2.66692,2624.8,2624.0,2.3855]
[1723390622399,2.66733,2624.4,2624.0,2.3855]
[1723390622590,2.66748,2624.2,2624.0,2.3855]
[1723390622986,2.66733,2624.4,2624.0,2.3855]
[1723390623180,2.3255,2624.8,2624.0,2.3855]
[1723390623181,2.66693,2624.8,2624.2,2.6674]
[1723390623381,2.66697,2624.7,2624.2,2.74360134]
[1723390623589,2.66697,2624.7,2624.2,3.17269]
[1723390623919,2.66683,2624.9,2624.5,2.3855]
[1723390624439,2.66662,2625.1,2624.5,2.3855]
[1723390624440,2.66667,2625.0,2624.5,5.05267]
[1723390624926,2.66695,2624.8,2624.5,2.3855]
[1723390625095,2.66707,2624.6,2624.5,2.3855]
[1723390625500,5.33391,2624.8,2624.5,2.3855]
[1723390625808,5.33391,2624.8,2624.1,2.66751]
[1723390625809,2.66708,2624.6,2624.2,2.4471]
[1723390626328,2.66695,2624.8,2624.2,5.11457]
[1723390626514,2.66695,2624.8,2624.3,2.66736]
[1723390627884,2.66695,2624.8,2624.1,2.66751]
[1723390627885,2.66661,2625.1,2624.6,2.66699]
[1723390628085,2.66643,2625.3,2624.6,2.66699]
[1723390628086,2.66643,2625.3,2624.7,2.52329204]
[1723390628289,2.66654,2625.2,2624.7,2.4471]
[1723390628627,2.66665,2625.1,2624.8,0.511409]
[1723390628796,2.66654,2625.2,2624.7,5.11406]
[1723390628992,2.66654,2625.2,2624.7,2.4471]
[1723390629210,2.66633,2625.4,2624.7,2.4471]
[1723390629406,2.66636,2625.3,2624.8,2.66686]
[1723390629617,2.66636,2625.3,2624.9,0.511396]
[1723390629819,10.3,2625.7,2624.7,2.4471]
[1723390629820,2.43924094,2625.2,2624.7,2.4471]
[1723390630021,2.66666,2625.0,2624.4,9.7825]
[1723390630219,2.66691,2624.8,2624.4,11.1276681]
[1723390630730,5.33348,2625.0,2624.4,13.7949181]
[1723390630933,2.66674,2625.0,2624.4,16.4621381]
[1723390631137,2.66674,2625.0,2624.5,1.64621381]
[1723390631331,2.66672,2625.0,2624.5,1.64621381]
[1723390631643,2.66682,2624.9,2624.5,1.64621381]
[1723390631805,2.66672,2625.0,2624.5,1.64621381]
[1723390631991,2.66672,2625.0,2624.5,4.31337381]
[1723390632196,2.66651,2625.2,2624.6,4.34335438]
[1723390632397,2.66632,2625.4,2624.9,2.4325]
[1723390632398,5.33267,2625.4,2624.9,2.4325]
[1723390632634,2.66638,2625.3,2624.9,2.4325]
[1723390632832,2.66652,2625.2,2624.9,2.942436]
[1723390633040,2.66652,2625.2,2624.9,2.4325]
[1723390633603,2.66636,2625.3,2624.9,2.4325]
[1723390633811,2.66632,2625.4,2624.9,2.4325]
[1723390634037,2.66636,2625.3,2624.9,2.942439]
[1723390634234,2.66636,2625.3,2624.9,2.4325]
[1723390634905,2.66632,2625.4,2624.9,2.4325]
[1723390635109,2.66632,2625.4,2624.9,5.09916]
[1723390635305,2.66632,2625.4,2625.0,0.78421969]
[1723390635538,2.66645,2625.3,2625.0,0.78421969]
[1723390635909,2.66641,2625.3,2625.0,0.78421969]
[1723390636121,2.66646,2625.2,2625.0,0.78421969]
[1723390636334,2.66646,2625.2,2624.9,2.4325]
[1723390636844,2.66642,2625.3,2624.9,2.4325]
[1723390637132,2.66647,2625.2,2624.9,2.4325]
[1723390637311,2.66647,2625.2,2625.0,0.24325]
[1723390639633,2.66633,2625.4,2625.0,0.24325]
[1723390639802,2.66637,2625.3,2625.0,0.24325]
[1723390640137,10.3,2625.7,2624.6,4.10880438]
[1723390640138,2.4518,2625.5,2624.6,4.10880438]
[1723390640335,2.4518,2625.5,2624.3,2.66731]
[1723390640336,2.66697,2624.7,2624.3,2.4325]
[1723390640633,2.66722,2624.5,2624.3,2.4325]
[1723390640841,2.66722,2624.5,2624.0,2.4325]
[1723390641026,2.66728,2624.4,2624.0,2.4325]
[1723390641239,2.66744,2624.3,2623.6,2.4325]
[1723390641522,2.66781,2623.9,2623.6,2.4325]
[1723390641745,2.66795,2623.8,2623.3,5.10082]
[1723390641902,2.66781,2623.9,2623.6,0.06236101]
[1723390642244,2.66781,2623.9,2623.4,2.66823]
[1723390642542,2.66764,2624.1,2623.5,3.50761931]
[1723390642743,2.66742,2624.3,2623.6,2.66807]
[1723390643043,2.66742,2624.3,2623.9,2.4325]
[1723390643951,5.33488,2624.3,2623.9,2.4325]
[1723390644105,2.66748,2624.2,2623.9,2.4325]
[1723390644506,2.66755,2624.2,2623.5,2.2545]
[1723390644713,2.66755,2624.2,2623.6,0.55482464]
[1723390644714,2.66763,2624.1,2623.6,0.55482464]
[1723390644961,9.96719,2624.5,2623.6,0.55482464]
[1723390644962,5.33543,2624.0,2623.6,0.55482464]
[1723390645129,5.33543,2624.0,2623.6,0.06255464]
[1723390645455,2.66769,2624.0,2623.6,0.06255464]
[1723390645758,2.66793,2623.8,2623.6,0.06255464]
[1723390645923,2.66798,2623.7,2623.6,0.06255464]
[1723390646258,2.66793,2623.8,2623.2,2.2545]
[1723390646259,2.66809,2623.6,2623.2,2.2545]
[1723390646561,2.66824,2623.5,2623.2,0.75917]
[1723390646712,2.66835,2623.4,2622.9,2.2545]
[1723390646911,2.66835,2623.4,2622.9,4.92329]
[1723390647112,2.66835,2623.4,2623.0,1.494212]
[1723390647754,2.66835,2623.4,2622.9,4.92322]
[1723390648253,2.66795,2623.8,2623.1,2.66858]
[1723390648550,2.66785,2623.9,2623.4,2.2545]
[1723390648850,2.66789,2623.8,2623.5,0.759116]
[1723390649048,2.66789,2623.8,2623.4,2.2545]
[1723390649917,2.66799,2623.7,2623.4,2.2545]
[1723390651419,2.66789,2623.8,2623.4,2.2545]
[1723390651620,2.66775,2624.0,2623.4,4.9227]
[1723390652364,2.66782,2623.9,2623.4,4.9227]
[1723390653033,2.66804,2623.7,2623.4,2.2545]
[1723390653232,2.66804,2623.7,2623.2,2.66841]
[1723390654655,5.33572,2623.9,2623.2,2.66841]
[1723390654830,2.66784,2623.9,2623.4,2.66823]
[1723390655172,2.668,2623.7,2623.2,3.177051]
[1723390655761,2.6682,2623.5,2623.1,2.4179]
[1723390655940,2.66856,2623.2,2622.8,2.4179]
[1723390656259,2.66811,2623.6,2622.5,2.4179]
[1723390656260,2.66896,2622.8,2622.5,2.4179]
[1723390656436,2.66876,2623.0,2622.5,2.4179]
[1723390656437,5.33752,2623.0,2622.5,2.4179]
[1723390656640,2.66876,2623.0,2622.5,2.4179]
[1723390657035,2.66876,2623.0,2622.5,5.08703]
[1723390657243,2.66876,2623.0,2622.5,5.862656]
[1723390657558,2.66855,2623.2,2622.7,2.66893]
[1723390657760,2.66849,2623.2,2622.5,5.862656]
[1723390658122,2.6686,2623.1,2622.5,5.862656]
[1723390658344,2.6687,2623.0,2622.5,5.862646]
[1723390658675,2.66849,2623.2,2622.6,0.5862656]
[1723390658973,2.66849,2623.2,2622.7,2.66895]
[1723390659538,2.66849,2623.2,2622.8,0.05754085]
[1723390659870,5.33706,2623.2,2622.9,0.05740238]
[1723390660375,5.33706,2623.2,2623.0,0.05726392]
[1723390660581,2.66859,2623.1,2623.0,0.05726392]
[1723390660870,2.66837,2623.4,2622.8,2.66884]
[1723390661037,2.66839,2623.3,2623.0,0.0520119]
[1723390661237,2.66839,2623.3,2622.9,0.05213652]
[1723390661437,2.66839,2623.3,2623.0,0.05199781]
[1723390661838,2.66839,2623.3,2622.8,0.32552156]
[1723390661839,2.66849,2623.2,2622.8,0.32552156]
[1723390662036,5.33698,2623.2,2623.1,0.0518732]
[1723390662242,2.66885,2622.9,2622.5,2.4179]
[1723390662441,2.66891,2622.8,2622.5,2.4179]
[1723390662680,2.669,2622.7,2622.6,0.0526889]
[1723390662975,2.66867,2623.1,2622.6,0.0526889]
[1723390663374,2.66891,2622.8,2622.6,0.0526889]
[1723390663540,2.669,2622.7,2622.6,0.0526889]
[1723390664282,5.338,2622.7,2622.6,0.0526889]
[1723390664672,2.66931,2622.4,2622.1,9.7679]
[1723390664867,5.33829,2622.6,2622.2,2.21979]
[1723390665040,2.66931,2622.4,2622.1,2.4179]
[1723390665246,2.66911,2622.6,2622.1,2.4179]
[1723390665445,2.66925,2622.5,2622.1,2.4179]
[1723390665786,2.66911,2622.6,2622.1,2.926656]
[1723390665991,5.33828,2622.6,2622.1,5.596266]
[1723390666171,2.66911,2622.6,2622.1,5.596266]
[1723390667596,2.669,2622.7,2622.2,2.66951]
[1723390667771,2.669,2622.7,2622.2,3.2291366]
[1723390668088,2.669,2622.7,2622.2,0.5596266]
[1723390668482,2.66921,2622.5,2622.2,0.5596266]
[1723390668682,2.66937,2622.4,2622.2,0.5596266]
[1723390668992,2.66918,2622.6,2622.2,0.5596266]
[1723390669193,2.66887,2622.9,2622.4,2.66926]
[1723390669389,2.66887,2622.9,2622.5,2.3512]
[1723390669591,2.66885,2622.9,2622.5,3.16266742]
[1723390670095,2.66895,2622.8,2622.5,3.16266742]
[1723390670890,2.66885,2622.9,2622.5,3.16266742]
[1723390670891,2.6688,2622.9,2622.5,3.16266742]
[1723390671080,2.66874,2623.0,2622.6,0.58319574]
[1723390671262,2.66874,2623.0,2622.5,5.83185742]
[1723390671462,2.66845,2623.3,2622.8,2.4452]
[1723390671783,2.66845,2623.3,2622.9,0.24452]
[1723390672319,2.66853,2623.2,2622.9,0.24452]
[1723390672903,2.66859,2623.1,2622.4,2.4452]
[1723390673194,2.66881,2622.9,2622.4,5.11445]
[1723390673396,2.66881,2622.9,2622.4,2.4452]
[1723390673397,2.66891,2622.8,2622.4,2.4452]
[1723390673800,2.66881,2622.9,2622.4,5.1145]
[1723390674098,2.66881,2622.9,2622.5,0.511454]
[1723390674503,2.66881,2622.9,2622.6,0.05871029]
[1723390674798,2.66855,2623.2,2622.6,5.39675029]
[1723390674999,2.66859,2623.1,2622.7,0.59082043]
[1723390675302,2.66859,2623.1,2622.8,0.05843332]
[1723390675501,2.66859,2623.1,2622.7,0.59082043]
[1723390675801,2.66849,2623.2,2622.8,0.05843332]
[1723390676099,2.66849,2623.2,2622.8,0.59872438]
[1723390676275,2.66849,2623.2,2622.9,0.05829484]
[1723390676469,2.66849,2623.2,2622.7,2.66899]
[1723390676671,2.66849,2623.2,2622.8,0.05843332]
[1723390676897,2.66836,2623.4,2622.9,2.4452]
[1723390677102,2.66822,2623.5,2623.0,0.05234074]
[1723390678007,2.66822,2623.5,2623.0,2.72098074]
[1723390678209,2.66822,2623.5,2623.1,0.78349207]
[1723390678585,2.66822,2623.5,2623.2,0.05209153]
[1723390679505,2.66815,2623.6,2623.2,0.05209153]
[1723390679899,2.66819,2623.5,2623.2,0.05209153]
[1723390680093,2.66815,2623.6,2623.2,0.05209153]
[1723390680298,2.66815,2623.6,2623.2,0.41014271]
[1723390680495,2.66825,2623.5,2623.2,0.41014271]
[1723390680700,2.66829,2623.4,2623.2,0.05209153]
[1723390681103,2.66829,2623.4,2622.9,5.11399]
[1723390681278,2.66816,2623.6,2623.1,2.66856]
[1723390681477,2.66816,2623.6,2623.2,0.32393871]
[1723390681689,2.6682,2623.5,2623.2,0.05187072]
[1723390681890,2.6682,2623.5,2623.0,2.66861]
[1723390681891,2.66816,2623.6,2623.0,2.66861]
[1723390682087,2.66816,2623.6,2623.1,0.12823199]
[1723390683210,2.66819,2623.5,2623.1,0.05199532]
[1723390683402,2.66819,2623.5,2623.1,0.57619956]
[1723390683779,2.66793,2623.8,2623.3,2.4452]
[1723390684097,2.66824,2623.5,2623.3,2.4452]
[1723390684304,2.66824,2623.5,2623.4,0.05710147]
[1723390684696,2.66824,2623.5,2623.0,5.15575]
[1723390685013,2.66819,2623.5,2623.1,0.05176509]
[1723390685214,2.66819,2623.5,2623.1,0.5725166]
[1723390685909,2.66831,2623.4,2623.1,0.5725166]
[1723390686115,2.66819,2623.5,2623.1,0.5725166]
[1723390686709,2.66807,2623.7,2623.1,0.05176509]
[1723390687118,2.66846,2623.3,2623.1,0.05176509]
[1723390687287,5.33691,2623.3,2623.1,0.05176509]
[1723390687481,5.33698,2623.2,2623.1,0.05176509]
[1723390687698,2.66873,2623.0,2622.7,2.4871]
[1723390688088,2.66864,2623.1,2622.8,0.05792694]
[1723390688289,2.66852,2623.2,2622.7,5.15609]
[1723390688614,2.66841,2623.3,2622.9,2.66878]
[1723390688821,2.66826,2623.5,2622.9,0.92154515]
[1723390689001,2.66856,2623.2,2623.0,0.05200244]
[1723390689201,2.66859,2623.1,2623.0,0.05200244]
[1723390689420,2.6681,2623.6,2622.4,2.4871]
[1723390689421,2.4833,2623.3,2622.4,2.4871]
[1723390689594,2.66891,2622.8,2622.4,2.4871]
[1723390689798,2.66911,2622.6,2622.4,2.4871]
[1723390690122,2.66905,2622.7,2622.4,2.4871]
[1723390691520,2.66905,2622.7,2622.1,10.01954]
[1723390691710,2.66905,2622.7,2622.1,15.1762]
[1723390691917,2.66905,2622.7,2622.2,1.51762]
[1723390693523,2.66911,2622.6,2622.2,1.51762]
[1723390695849,2.66897,2622.8,2622.1,9.8371]
[1723390695995,2.6695,2622.3,2621.7,2.4871]
[1723390696194,5.33897,2622.3,2621.8,2.66987]
[1723390696444,2.66946,2622.3,2621.9,0.515697]
[1723390696745,2.66931,2622.4,2622.0,2.4871]
[1723390697099,2.66926,2622.5,2622.0,2.4871]
[1723390697300,2.66941,2622.3,2622.0,2.4871]
[1723390697828,5.33889,2622.3,2622.0,2.4871]
[1723390698147,2.66963,2622.1,2621.7,2.4871]
[1723390698345,2.66963,2622.1,2621.7,3.269841]
[1723390698646,2.66951,2622.2,2621.7,5.939851]
[1723390698832,2.66931,2622.4,2621.9,2.66981]
[1723390699032,2.66931,2622.4,2621.9,2.66977]
[1723390699033,2.66936,2622.4,2621.9,2.66977]
[1723390699329,5.33849,2622.5,2622.0,2.936637]
[1723390699523,2.66932,2622.4,2622.0,0.266977]
[1723390699928,2.66941,2622.3,2622.0,0.266977]
[1723390700133,2.66941,2622.3,2621.8,2.66989]
[1723390700442,2.6696,2622.2,2621.7,5.1571]
[1723390700808,2.66941,2622.3,2621.8,5.15695]
[1723390701014,2.66931,2622.4,2621.9,3.452445]
[1723390701214,2.66931,2622.4,2621.8,5.15701]
[1723390701430,3.0,2622.7,2621.8,2.4871]
[1723390701614,2.66962,2622.1,2621.8,2.4871]
[1723390702930,5.33931,2622.1,2621.8,2.4871]
[1723390703133,2.66942,2622.3,2621.5,2.4871]
[1723390703305,2.4833,2622.4,2621.1,5.15773]
[1723390703306,2.67017,2621.6,2621.1,5.15773]
[1723390703997,2.67028,2621.5,2621.1,2.4871]
[1723390704432,2.67028,2621.5,2621.2,0.0423719]
[1723390705003,2.66998,2621.8,2621.2,2.7128319]
[1723390705232,2.66998,2621.8,2621.3,2.67041]
[1723390705541,2.66977,2622.0,2621.5,2.67022]
[1723390705843,5.33956,2622.0,2621.6,0.04569079]
[1723390706042,2.66997,2621.8,2621.6,0.04569079]
[1723390706333,2.66997,2621.8,2621.3,2.67041]
[1723390706635,2.66982,2621.9,2621.4,2.70989718]
[1723390706835,2.3456,2622.2,2621.5,2.4654]
[1723390706836,2.66958,2622.2,2621.5,2.4654]
[1723390707004,2.3456,2622.5,2621.5,5.13556]
[1723390707005,2.66982,2621.9,2621.5,5.13556]
[1723390707201,2.66982,2621.9,2621.6,0.03941537]
[1723390707401,2.66972,2622.0,2621.6,0.03941537]
[1723390708002,2.66984,2621.9,2621.6,0.03941537]
[1723390708414,5.34004,2621.7,2621.6,0.03941537]
[1723390708634,2.67026,2621.5,2621.2,2.4654]
[1723390708811,2.67026,2621.5,2620.7,5.13636]
[1723390709015,5.34092,2621.3,2620.8,2.6709]
[1723390709214,5.34093,2621.3,2620.8,2.6709]
[1723390709540,2.67043,2621.3,2620.8,3.451642]
[1723390710048,2.3456,2621.6,2620.8,0.780742]
[1723390710335,2.67072,2621.1,2620.4,5.00687]
[1723390710643,2.67084,2620.9,2620.4,5.00687]
[1723390711541,2.67094,2620.8,2620.4,2.3356]
[1723390712150,2.67084,2620.9,2620.4,2.3356]
[1723390712311,2.67096,2620.8,2620.4,2.3356]
[1723390712517,2.6712,2620.6,2620.1,5.00722]
[1723390712711,2.6712,2620.6,2619.8,2.3356]
[1723390712910,2.67106,2620.7,2620.1,2.67155]
[1723390713109,2.4717,2621.2,2619.8,2.3356]
[1723390713110,2.67089,2620.9,2619.8,2.3356]
[1723390713346,2.4717,2621.2,2619.8,2.3356]
[1723390713347,2.67106,2620.7,2620.2,2.67149]
[1723390713546,2.67106,2620.7,2619.9,0.500763]
[1723390713547,2.67134,2620.5,2619.9,2.6718]
[1723390713725,2.67133,2620.5,2619.9,2.6718]
[1723390714072,2.4717,2620.6,2619.8,2.3356]
[1723390714073,2.67152,2620.3,2619.8,2.3356]
[1723390714363,2.67165,2620.1,2619.8,2.3356]
[1723390714623,2.67165,2620.1,2619.6,2.7146813]
[1723390714770,2.67152,2620.3,2619.7,2.67206]
[1723390715066,2.67141,2620.4,2619.8,2.6719]
[1723390715067,2.6714,2620.4,2619.8,2.6719]
[1723390715252,2.67146,2620.3,2619.7,1.50723913]
[1723390715450,2.67146,2620.3,2619.7,2.67203]
[1723390715653,2.4717,2620.6,2619.6,2.7146013]
[1723390715654,2.67155,2620.2,2619.6,2.7146013]
[1723390715843,2.67155,2620.2,2619.6,0.0425313]
[1723390716039,2.67155,2620.2,2619.6,2.7146713]
[1723390716257,2.67141,2620.4,2619.8,5.34385]
[1723390716455,2.67141,2620.4,2619.8,5.3438]
[1723390716659,2.67141,2620.4,2619.8,2.6719]
[1723390716964,2.67141,2620.4,2619.8,2.67189]
[1723390718069,5.34285,2620.4,2619.8,2.67189]
[1723390718270,2.67145,2620.3,2619.8,2.67189]
[1723390718486,2.67133,2620.5,2619.8,2.67189]
[1723390718890,2.67135,2620.4,2619.9,2.67184]
[1723390719399,2.6715,2620.3,2620.0,0.03890016]
[1723390719902,2.6715,2620.3,2619.8,2.67195]
[1723390720046,2.6715,2620.3,2620.1,0.0388169]
[1723390720250,2.6715,2620.3,2619.8,2.67195]
[1723390720489,2.6715,2620.3,2620.2,0.03873364]
[1723390720646,2.6715,2620.3,2619.8,2.67195]
[1723390720849,2.6715,2620.3,2620.2,0.03873364]
[1723390721079,2.6715,2620.3,2619.8,2.67195]
[1723390721246,2.6715,2620.3,2620.2,0.03873364]
[1723390721452,2.67131,2620.5,2620.0,2.6717]
[1723390721653,2.67131,2620.5,2620.2,0.03873364]
[1723390721874,2.67109,2620.7,2620.1,2.3744169]
[1723390722137,2.67109,2620.7,2620.3,0.0386504]
[1723390722138,2.67115,2620.6,2620.3,0.0386504]
[1723390722390,3.205374,2620.6,2620.4,0.03856715]
[1723390722550,2.67099,2620.8,2620.1,2.3356]
[1723390722757,2.67105,2620.7,2620.2,2.71022364]
[1723390722951,5.34218,2620.7,2620.2,0.03873364]
[1723390723160,5.14292,2620.6,2620.2,0.03873364]
[1723390723359,2.67105,2620.7,2620.2,0.03873364]
[1723390723581,2.67105,2620.7,2620.2,2.71028364]
[1723390724152,7.3,2620.9,2620.3,0.07632612]
[1723390724356,2.4717,2621.4,2620.4,0.03858284]
[1723390724587,2.67053,2621.2,2620.7,2.67096]
[1723390724763,5.14206,2621.4,2620.9,2.67082]
[1723390724764,2.4717,2621.4,2620.9,2.67082]
[1723390724987,2.67032,2621.4,2621.0,2.70880352]
[1723390725292,2.67022,2621.5,2621.0,2.70880352]
[1723390725462,2.67022,2621.5,2621.0,5.37948352]
[1723390725791,5.34051,2621.5,2621.0,2.70879352]
[1723390725999,2.67043,2621.3,2621.0,0.03808352]
[1723390726206,5.34051,2621.5,2620.8,2.67083]
[1723390726500,2.67006,2621.7,2621.2,2.67052]
[1723390726682,2.67006,2621.7,2621.2,2.67047]
[1723390727017,5.34064,2621.4,2621.3,0.04018002]
[1723390727366,2.67055,2621.2,2620.7,2.3142]
[1723390727566,2.67055,2621.2,2620.8,0.03791734]
[1723390727772,2.67055,2621.2,2620.7,2.3142]
[1723390727967,2.67055,2621.2,2620.5,7.35]
[1723390727968,2.67078,2621.0,2620.8,0.04050137]
[1723390728179,2.67063,2621.1,2620.5,10.02118]
[1723390728369,2.6706,2621.2,2620.7,2.67098]
[1723390728571,2.3738,2621.6,2620.8,0.03780128]
[1723390728802,2.67029,2621.5,2621.0,2.67072]
[1723390729099,2.67061,2621.2,2620.9,0.037831]
[1723390729302,2.67061,2621.2,2620.6,2.3142]
[1723390729303,2.6706,2621.2,2620.6,2.3142]
[1723390729469,2.67076,2621.0,2620.6,2.3142]
[1723390729667,2.67064,2621.1,2620.6,4.98529]
[1723390729993,3.204701,2621.2,2620.3,2.4909]
[1723390729994,2.67074,2621.0,2620.3,2.4909]
[1723390730318,0.3204701,2621.1,2620.6,2.67104]
[1723390730515,2.67071,2621.1,2620.6,2.67104]
[1723390730812,2.67071,2621.1,2620.6,5.34212]
[1723390731112,2.67071,2621.1,2620.6,2.67104]
[1723390731613,9.97058,2621.2,2620.6,2.67104]
[1723390731824,7.3,2621.2,2620.8,5.16177]
[1723390731985,7.3,2621.2,2621.1,2.67063]
[1723390732177,2.67022,2621.5,2620.8,5.677947]
[1723390732499,2.67022,2621.5,2620.9,2.67082]
[1723390732706,5.34053,2621.5,2621.0,2.67072]
[1723390732872,5.34052,2621.5,2621.0,2.67072]
[1723390733432,2.67033,2621.4,2621.0,2.67072]
[1723390733726,5.67009,2621.7,2621.0,2.67072]
[1723390733727,2.67023,2621.5,2621.0,5.34135]
[1723390733927,2.67023,2621.5,2621.0,2.67067]
[1723390734138,5.67009,2621.7,2621.2,2.67048]
[1723390734337,8.34017,2621.7,2621.2,2.67048]
[1723390734626,2.67014,2621.6,2621.3,0.04015985]
[1723390734932,2.67023,2621.5,2621.0,2.67065]
[1723390735133,2.67023,2621.5,2621.4,0.04007073]
[1723390735338,2.67047,2621.3,2620.8,2.4909]
[1723390735542,2.67073,2621.1,2620.8,2.4909]
[1723390735752,2.67058,2621.2,2620.6,5.34214]
[1723390735901,2.67058,2621.2,2620.6,2.67106]
[1723390736241,2.67046,2621.3,2620.8,2.67088]
[1723390736449,2.67053,2621.2,2620.8,2.67088]
[1723390737942,2.67053,2621.2,2620.6,2.67104]
[1723390738438,2.67053,2621.2,2620.5,5.16213]
[1723390738638,2.67063,2621.1,2620.6,2.67109]
[1723390739030,2.67074,2621.0,2620.6,2.67109]
[1723390739357,2.67074,2621.0,2620.5,2.4909]
[1723390739537,2.67074,2621.0,2620.5,5.16213]
[1723390739850,2.67085,2620.9,2620.5,5.16213]
[1723390740017,2.67074,2621.0,2620.5,5.16213]
[1723390740220,2.67074,2621.0,2620.5,6.41565799]
[1723390740402,2.67074,2621.0,2620.5,5.16209]
[1723390740598,2.67089,2620.9,2620.5,2.4909]
[1723390741431,2.67145,2620.3,2620.0,0.04252481]
[1723390741633,2.938695,2620.2,2619.7,2.67201]
[1723390741945,2.67135,2620.4,2619.5,5.16308]
[1723390741946,2.67165,2620.1,2619.6,2.6721]
[1723390742242,2.6716,2620.2,2619.7,2.67205]
[1723390743212,2.6716,2620.2,2619.5,5.16308]
[1723390743412,5.34357,2620.0,2619.5,5.16308]
[1723390743637,2.67186,2619.9,2619.5,2.4909]
[1723390743846,2.67175,2620.0,2619.5,5.16314]
[1723390744218,2.67186,2619.9,2619.5,2.4909]
[1723390744420,2.67175,2620.0,2619.5,2.4909]
[1723390744627,5.34356,2620.0,2619.5,5.16308]
[1723390744820,2.67175,2620.0,2619.5,2.4909]
[1723390745053,4.99898,2619.7,2619.2,2.67249]
[1723390745257,2.67196,2619.8,2619.2,5.345]
[1723390745415,2.67196,2619.8,2619.3,2.67246]
[1723390745759,0.267175,2620.0,2619.4,2.67231]
[1723390746241,2.67196,2619.8,2619.3,2.4023]
[1723390747040,2.67212,2619.7,2619.3,2.4023]
[1723390749114,2.67211,2619.7,2619.3,2.4023]
[1723390749623,2.67211,2619.7,2619.4,0.04483733]
[1723390751213,2.6719,2619.9,2619.4,0.04483733]
[1723390751413,2.67198,2619.8,2619.4,0.04483733]
[1723390752186,5.34402,2619.8,2619.4,0.04483733]
[1723390752476,2.67206,2619.7,2619.4,0.04483733]
[1723390752746,2.67198,2619.8,2619.4,0.04483733]
[1723390753063,2.67206,2619.7,2619.4,0.04483733]
[1723390753231,2.67198,2619.8,2619.4,0.04483733]
[1723390753559,2.67182,2620.0,2619.4,0.04483733]
[1723390753913,7.3,2620.2,2619.4,0.04483733]
[1723390753914,9.97161,2620.2,2619.4,2.71709733]
[1723390754433,2.67192,2619.9,2619.4,2.71709733]
[1723390755084,2.939112,2619.9,2619.4,0.04483733]
[1723390755353,2.939112,2619.9,2619.4,2.71718733]
[1723390755820,2.67192,2619.9,2619.4,2.71718733]
[1723390756733,2.67192,2619.9,2619.4,2.71713733]
[1723390757545,2.67171,2620.1,2619.4,2.71713733]